fUST/lending_fUST_20260101
["ID","MTS","AMOUNT","RATE_DAILY","PERIOD"]
[400232916,1767208246480,-180.54271303,0.000339,120]
[400232917,1767208246489,-162.33069799,0.000339,120]
[400232918,1767208246499,-1144.69294991,0.000339,120]
[400232919,1767208246508,-183.49170094,0.000339,120]
[400232920,1767208246518,-1041.66666667,0.00034,120]
[400232921,1767208246527,-825.65138265,0.00034046,2]
[400232922,1767208246536,-5283.35,0.00034053,2]
[400232923,1767208246546,-5000.0,0.00034245,15]
[400232924,1767208246555,-956.2,0.00034246,36]
[400232925,1767208246564,-165.22,0.000343,7]
[400232926,1767208246573,-159.87,0.000343,7]
[400232927,1767208246583,-161.24844439,0.00034403,2]
[400232928,1767208246592,-152.53,0.0003445,60]
[400232929,1767208246601,-151.19,0.0003445,60]
[400232930,1767208246611,-2100.61,0.0003445,60]
[400232931,1767208246620,-160.0,0.00034481,14]
[400232932,1767208246630,-5000.0,0.00034516,15]
[400232933,1767208246640,-350.0,0.00034521,5]
[400232934,1767208246742,-152.53,0.0003455,60]
[400232935,1767208246752,-151.19,0.0003455,60]
[400232936,1767208246762,-2100.61,0.0003455,60]
[400232937,1767208246772,-156.47,0.000346,7]
[400232938,1767208246781,-5000.0,0.0003465,10]
[400232939,1767208246791,-152.53,0.0003465,60]
[400232940,1767208246801,-151.19,0.0003465,60]
[400232941,1767208246811,-2100.61,0.0003465,60]
[400232942,1767208246822,-927.34,0.000347,30]
[400232943,1767208246832,-152.53,0.0003475,60]
[400232944,1767208246841,-151.19,0.0003475,60]
[400232945,1767208246851,-2100.61,0.0003475,60]
[400232946,1767208246860,-5000.0,0.00034787,15]
[400232947,1767208246871,-5000.0,0.00034793,15]
[400232948,1767208246880,-956.2,0.00034794,37]
[400232949,1767208246890,-152.53,0.0003485,60]
[400232950,1767208246899,-151.21868735,0.0003485,60]
[400232951,1767208246908,-2100.61,0.0003485,60]
[400232952,1767208246917,-180.68929149,0.000349,120]
[400232953,1767208246926,-180.54271303,0.000349,120]
[400232954,1767208246935,-1144.69294991,0.000349,120]
[400232955,1767208246945,-152.53,0.0003495,60]
[400232956,1767208246954,-2100.61,0.0003495,60]
[400232957,1767208246963,-152.53,0.0003505,60]
[400232958,1767208246972,-2100.61,0.0003505,60]
[400232959,1767208246981,-173.81411526,0.00035063,27]
[400232960,1767208246990,-160.0,0.00035065,15]
[400232961,1767208246999,-8500.79,0.000351,14]
[400232962,1767208247009,-946.08130814,0.00035104,120]
[400232963,1767208247022,-152.53,0.0003515,60]
[400232964,1767208247031,-2100.61,0.0003515,60]
[400232965,1767208247040,-169.32246815,0.00035178,30]
[400232966,1767208247050,-2000.0,0.00035181,7]
[400232967,1767208247060,-152.53,0.0003525,60]
[400232968,1767208247069,-2100.61,0.0003525,60]
[400232969,1767208247079,-5000.0,0.00035286,3]
[400232970,1767208247088,-5000.0,0.00035341,15]
[400232971,1767208247097,-956.2,0.00035342,38]
[400232972,1767208247107,-450.0,0.00035342,5]
[400232973,1767208247116,-152.59,0.0003535,60]
[400232974,1767208247125,-2100.61,0.0003535,60]
[400232975,1767208247135,-367.96456977,0.00035383,15]
[400232976,1767208247144,-332.0,0.00035441,30]
[400232977,1767208247154,-2100.61,0.0003545,60]
[400232978,1767208247163,-2100.61,0.0003555,60]
[400232979,1767208247173,-244.9,0.0003557,30]
[400232980,1767208247182,-169.32246815,0.00035644,30]
[400232981,1767208247191,-726.0,0.00035644,11]
[400232982,1767208247200,-160.0,0.0003565,16]
[400232983,1767208247210,-2100.61,0.0003565,60]
[400232984,1767208247219,-161.24844439,0.0003566,2]
[400232985,1767208247228,-726.0,0.00035722,11]
[400232986,1767208247237,-2100.61,0.0003575,60]
[400232987,1767208247247,-5000.0,0.00035795,14]
[400232988,1767208247256,-500.0,0.00035796,14]
[400232989,1767208247267,-5000.0,0.00035833,15]
[400232990,1767208247281,-2100.61,0.0003585,60]
[400232991,1767208247290,-5000.0,0.00035889,15]
[400232992,1767208247300,-956.2,0.0003589,39]
[400232993,1767208247310,-726.0,0.00035892,11]
[400232994,1767208247319,-5000.0,0.00035899,15]
[400232995,1767208247329,-600.0,0.00035906,2]
[400232996,1767208247339,-2100.61,0.0003595,60]
[400232997,1767208247348,-726.0,0.00035955,11]
[400232998,1767208247358,-874.0,0.00035955,11]
[400232999,1767208247367,-2100.61,0.0003605,60]
[400233000,1767208247377,-726.0,0.00036079,11]
[400233001,1767208247386,-5000.0,0.00036092,8]
[400233002,1767208247395,-156.47,0.000361,7]
[400233003,1767208247404,-169.32246815,0.0003611,30]
[400233004,1767208247414,-169.32246815,0.0003611,30]
[400233005,1767208247423,-376.3998898,0.00036131,30]
[400233006,1767208247433,-2000.0,0.00036145,7]
[400233007,1767208247442,-2100.61,0.0003615,60]
[400233008,1767208247451,-651.10848757,0.00036164,5]
[400233009,1767208247460,-7606.29489299,0.0003618,2]
[400233010,1767208247469,-927.34,0.000362,30]
[400233011,1767208247479,-160.0,0.00036234,17]
[400233012,1767208247488,-500.0,0.0003625,30]
[400233013,1767208247498,-500.0,0.0003625,30]
[400233014,1767208247507,-500.0,0.0003625,30]
[400233015,1767208247516,-2100.61,0.0003625,60]
[400233016,1767208247525,-726.0,0.00036251,11]
[400233017,1767208247535,-600.0,0.0003628,2]
[400233018,1767208247545,-1500.625286,0.000363,24]
[400233019,1767208247554,-800.0,0.00036305,7]
[400233020,1767208247563,-2100.61,0.0003635,60]
[400233021,1767208247572,-173.81411526,0.00036353,29]
[400233022,1767208247581,-5000.0,0.00036356,15]
[400233023,1767208247591,-5000.0,0.00036371,3]
[400233024,1767208247599,-5000.0,0.00036437,15]
[400233025,1767208247609,-956.2,0.00036438,40]
[400233026,1767208247618,-7073.29,0.0003645,5]
[400233027,1767208247627,-2100.61,0.0003645,60]
[400233028,1767208247637,-376.3998898,0.00036515,30]
[400233029,1767208247646,-376.3998898,0.00036515,30]
[400233030,1767208247655,-376.3998898,0.00036515,30]
[400233031,1767208247664,-376.3998898,0.00036515,30]
[400233032,1767208247673,-376.3998898,0.00036515,30]
[400233033,1767208247683,-376.3998898,0.00036515,30]
[400233034,1767208247692,-2100.61,0.0003655,60]
[400233035,1767208247701,-169.32246815,0.00036575,30]
[400233036,1767208247710,-308477.52,0.0003659,5]
[400233037,1767208247719,-2100.61,0.0003665,60]
[400233038,1767208247728,-600.0,0.00036654,2]
[400233039,1767208247737,-726.0,0.00036658,11]
[400233040,1767208247747,-800.0,0.00036683,7]
[400233041,1767208247757,-5000.0,0.00036684,5]
[400233042,1767208247766,-627.0,0.00036701,2]
[400233043,1767208247776,-1364.0,0.00036701,2]
[400233044,1767208247785,-2156.0,0.00036701,2]
[400233045,1767208247794,-416.0,0.00036701,2]
[400233046,1767208247803,-416.0,0.00036701,2]
[400233047,1767208247812,-150.0,0.00036701,2]
[400233048,1767208247822,-800.0,0.00036702,7]
[400233049,1767208247831,-5000.0,0.00036707,15]
[400233050,1767208247840,-2100.65947368,0.0003675,60]
[400233051,1767208247849,-3147.76375777,0.00036798,2]
[400233052,1767208247858,-5000.0,0.00036799,15]
[400233053,1767208247868,-5000.0,0.00036799,15]
[400233054,1767208247877,-1500.0,0.000368,24]
[400233055,1767208247886,-726.0,0.00036813,11]
[400233056,1767208247896,-160.0,0.00036819,18]
[400233057,1767208247905,-157.0,0.00036822,93]
[400233058,1767208247915,-3147.76375777,0.00036833,2]
[400233059,1767208247924,-3147.76375777,0.00036868,2]
[400233060,1767208247934,-5000.0,0.00036885,15]
[400233061,1767208247943,-109115.31656176,0.0003689,17]
[400233062,1767208247952,-2044.9530247,0.00036898,2]
[400233063,1767208247961,-3147.76375777,0.00036903,2]
[400233064,1767208247970,-800.0,0.00036913,7]
[400233065,1767208247980,-161.24844439,0.00036917,2]
[400233066,1767208247989,-726.0,0.00036923,11]
[400233067,1767208247998,-726.0,0.00036923,11]
[400233068,1767208248007,-153.0,0.00036926,30]
[400233069,1767208248018,-153.0,0.00036926,30]
[400233070,1767208248027,-153.0,0.00036926,30]
[400233071,1767208248035,-153.0,0.00036926,30]
[400233072,1767208248044,-153.0,0.00036926,30]
[400233073,1767208248053,-153.0,0.00036926,30]
[400233074,1767208248062,-153.0,0.00036926,30]
[400233075,1767208248072,-153.0,0.00036926,30]
[400233076,1767208248081,-153.0,0.00036926,30]
[400233077,1767208248090,-153.0,0.00036926,30]
[400233078,1767208248099,-153.0,0.00036926,30]
[400233079,1767208248108,-153.0,0.00036926,30]
[400233080,1767208248118,-153.0,0.00036926,30]
[400233081,1767208248127,-153.0,0.00036926,30]
[400233082,1767208248136,-1101.1759322,0.00036937,2]
[400233083,1767208248146,-20761.652081,0.00036937,2]
[400233084,1767208248155,-151.0,0.00036937,31]
[400233085,1767208248164,-151.0,0.00036937,31]
[400233086,1767208248173,-151.0,0.00036937,31]
[400233087,1767208248182,-151.0,0.00036937,31]
[400233088,1767208248191,-151.0,0.00036937,31]
[400233089,1767208248201,-151.0,0.00036937,31]
[400233090,1767208248210,-1859.662424,0.00036937,2]
[400233091,1767208248219,-151.0,0.00036937,31]
[400233092,1767208248228,-151.0,0.00036937,31]
[400233093,1767208248237,-151.0,0.00036937,31]
[400233094,1767208248247,-151.0,0.00036937,31]
[400233095,1767208248256,-151.0,0.00036937,31]
[400233096,1767208248266,-185.00562,0.00036937,31]
[400233097,1767208248278,-152.611704,0.00036937,31]
[400233098,1767208248288,-805.861522,0.00036937,31]
[400233099,1767208248298,-805.861522,0.00036937,31]
[400233100,1767208248307,-805.861522,0.00036937,31]
[400233101,1767208248317,-805.861522,0.00036937,31]
[400233102,1767208248326,-151.0,0.00036937,31]
[400233103,1767208248336,-151.0,0.00036937,31]
[400233104,1767208248346,-151.0,0.00036937,31]
[400233105,1767208248356,-151.0,0.00036937,31]
[400233106,1767208248365,-151.0,0.00036937,31]
[400233107,1767208248374,-151.0,0.00036937,31]
[400233108,1767208248384,-1549.100689,0.00036937,31]
[400233109,1767208248393,-1549.100689,0.00036937,31]
[400233110,1767208248403,-1549.100689,0.00036937,31]
[400233111,1767208248412,-1549.100689,0.00036937,31]
[400233112,1767208248423,-394.521351,0.00036937,31]
[400233113,1767208248433,-429.596572,0.00036937,31]
[400233114,1767208248442,-394.521351,0.00036937,31]
[400233115,1767208248451,-429.596572,0.00036937,31]
[400233116,1767208248461,-394.521351,0.00036937,31]
[400233117,1767208248470,-429.596572,0.00036937,31]
[400233118,1767208248480,-394.521351,0.00036937,31]
[400233119,1767208248490,-429.596572,0.00036937,31]
[400233120,1767208248500,-151.0,0.00036937,31]
[400233121,1767208248510,-151.0,0.00036937,31]
[400233122,1767208248520,-151.0,0.00036937,31]
[400233123,1767208248530,-166.656279,0.00036937,31]
[400233124,1767208248622,-3147.76375777,0.00036938,2]
[400233125,1767208248633,-3147.76375777,0.00036973,2]
[400233126,1767208248644,-5000.0,0.00036985,15]
[400233127,1767208248653,-956.2,0.00036986,41]
[400233128,1767208248663,-5000.0,0.00036987,15]
[400233129,1767208248672,-160.0,0.00036995,11]
[400233130,1767208248681,-726.0,0.00036995,11]
[400233131,1767208248690,-726.0,0.00036995,11]
[400233132,1767208248703,-151.0,0.00036996,31]
[400233133,1767208248712,-151.0,0.00036996,31]
[400233134,1767208248722,-151.0,0.00036996,31]
[400233135,1767208248731,-151.0,0.00036996,31]
[400233136,1767208248742,-151.0,0.00036996,31]
[400233137,1767208248753,-181.96895,0.00036996,31]
[400233138,1767208248762,-195.765928,0.00036996,31]
[400233139,1767208248771,-151.0,0.00036996,31]
[400233140,1767208248781,-151.0,0.00036996,31]
[400233141,1767208248791,-151.0,0.00036996,31]
[400233142,1767208248800,-1468.062669,0.00036996,31]
[400233143,1767208248809,-1468.062669,0.00036996,31]
[400233144,1767208248819,-1468.062669,0.00036996,31]
[400233145,1767208248829,-1468.062669,0.00036996,31]
[400233146,1767208248838,-151.0,0.00036996,31]
[400233147,1767208248847,-179.286498,0.00036996,31]
[400233148,1767208248857,-151.0,0.00036996,31]
[400233149,1767208248867,-179.286498,0.00036996,31]
[400233150,1767208248876,-151.0,0.00036996,31]
[400233151,1767208248888,-179.286498,0.00036996,31]
[400233152,1767208248898,-179.286498,0.00036996,31]
[400233153,1767208248907,-227.124845,0.00036996,31]
[400233154,1767208248916,-234.643774,0.00036996,31]
[400233155,1767208248925,-227.124845,0.00036996,31]
[400233156,1767208248935,-227.124845,0.00036996,31]
[400233157,1767208248945,-227.124845,0.00036996,31]
[400233158,1767208248955,-954.908642,0.00036996,31]
[400233159,1767208248964,-954.908642,0.00036996,31]
[400233160,1767208248974,-954.908642,0.00036996,31]
[400233161,1767208248983,-954.908642,0.00036996,31]
[400233162,1767208248992,-153.327647,0.00036996,31]
[400233163,1767208249002,-151.0,0.00036996,31]
[400233164,1767208249011,-151.0,0.00036996,31]
[400233165,1767208249020,-151.0,0.00036996,31]
[400233166,1767208249029,-151.0,0.00036996,31]
[400233167,1767208249039,-151.0,0.00036996,31]
[400233168,1767208249049,-151.0,0.00036996,31]
[400233169,1767208249058,-151.0,0.00036996,31]
[400233170,1767208249067,-300.34133,0.00036996,31]
[400233171,1767208249077,-396.831655,0.00036996,31]
[400233172,1767208249086,-396.831655,0.00036996,31]
[400233173,1767208249096,-396.831655,0.00036996,31]
[400233174,1767208249106,-396.831655,0.00036996,31]
[400233175,1767208249115,-151.0,0.00036996,31]
[400233176,1767208249125,-151.0,0.00036996,31]
[400233177,1767208249136,-151.0,0.00036996,31]
[400233178,1767208249145,-490.060247,0.00036996,31]
[400233179,1767208249154,-490.060247,0.00036996,31]
[400233180,1767208249169,-490.060247,0.00036996,31]
[400233181,1767208249181,-151.0,0.00036996,31]
[400233182,1767208249198,-490.060247,0.00036996,31]
[400233183,1767208249207,-151.0,0.00036996,31]
[400233184,1767208249217,-151.0,0.00036996,31]
[400233185,1767208249226,-187.78338598,0.00037,120]
[400233186,1767208249236,-2500.0,0.00037004,30]
[400233187,1767208249246,-7502.46707623,0.00037004,120]
[400233188,1767208249256,-3147.76375777,0.00037008,2]
[400233189,1767208249266,-151.0,0.0003701,31]
[400233190,1767208249279,-151.0,0.0003701,31]
[400233191,1767208249288,-151.0,0.0003701,7]
[400233192,1767208249299,-151.0,0.0003701,7]
[400233193,1767208249309,-151.0,0.0003701,7]
[400233194,1767208249319,-151.0,0.0003701,31]
[400233195,1767208249328,-151.0,0.0003701,31]
[400233196,1767208249338,-151.0,0.0003701,31]
[400233197,1767208249348,-151.0,0.0003701,31]
[400233198,1767208249358,-281.615911,0.0003701,31]
[400233199,1767208249368,-278.207289,0.0003701,31]
[400233200,1767208249378,-278.207289,0.0003701,31]
[400233201,1767208249388,-278.207289,0.0003701,31]
[400233202,1767208249397,-278.207289,0.0003701,31]
[400233203,1767208249406,-341.614676,0.0003701,31]
[400233204,1767208249416,-279.119257,0.0003701,31]
[400233205,1767208249426,-341.614676,0.0003701,31]
[400233206,1767208249435,-151.0,0.0003701,31]
[400233207,1767208249445,-341.614676,0.0003701,31]
[400233208,1767208249454,-151.0,0.0003701,31]
[400233209,1767208249464,-341.614676,0.0003701,31]
[400233210,1767208249473,-299.44978,0.0003701,31]
[400233211,1767208249483,-299.44978,0.0003701,31]
[400233212,1767208249493,-299.44978,0.0003701,31]
[400233213,1767208249503,-299.44978,0.0003701,31]
[400233214,1767208249515,-247.168557,0.0003701,31]
[400233215,1767208249524,-986.064237,0.0003701,31]
[400233216,1767208249534,-986.064237,0.0003701,31]
[400233217,1767208249544,-434.599422,0.0003701,31]
[400233218,1767208249553,-986.064237,0.0003701,31]
[400233219,1767208249577,-434.599422,0.0003701,31]
[400233220,1767208249586,-986.064237,0.0003701,31]
[400233221,1767208249595,-434.599422,0.0003701,31]
[400233222,1767208249605,-434.599422,0.0003701,31]
[400233223,1767208249614,-331.780528,0.0003701,31]
[400233224,1767208249624,-331.780528,0.0003701,31]
[400233225,1767208249633,-331.780528,0.0003701,31]
[400233226,1767208249643,-331.780528,0.0003701,31]
[400233227,1767208249652,-151.0,0.0003701,31]
[400233228,1767208249661,-177.291107,0.0003701,7]
[400233229,1767208249671,-270.454127,0.0003701,31]
[400233230,1767208249680,-435.404982,0.0003701,31]
[400233231,1767208249689,-270.454127,0.0003701,31]
[400233232,1767208249699,-352.845551,0.0003701,31]
[400233233,1767208249708,-435.404982,0.0003701,31]
[400233234,1767208249717,-270.454127,0.0003701,31]
[400233235,1767208249727,-352.845551,0.0003701,31]
[400233236,1767208249736,-435.404982,0.0003701,31]
[400233237,1767208249745,-270.454127,0.0003701,31]
[400233238,1767208249755,-352.845551,0.0003701,31]
[400233239,1767208249765,-435.404982,0.0003701,31]
[400233240,1767208249775,-352.845551,0.0003701,31]
[400233241,1767208249785,-151.0,0.0003701,31]
[400233242,1767208249794,-151.0,0.0003701,31]
[400233243,1767208249803,-151.0,0.0003701,31]
[400233244,1767208249813,-151.0,0.0003701,31]
[400233245,1767208249822,-177.644782,0.0003701,31]
[400233246,1767208249833,-193.357014,0.0003701,31]
[400233247,1767208249843,-193.357014,0.0003701,31]
[400233248,1767208249852,-193.357014,0.0003701,31]
[400233249,1767208249862,-193.357014,0.0003701,31]
[400233250,1767208249872,-326659.52480988,0.00037013,7]
[400233251,1767208249882,-906.127244,0.00037013,31]
[400233252,1767208249893,-906.127244,0.00037013,31]
[400233253,1767208249903,-906.127244,0.00037013,31]
[400233254,1767208249912,-906.127244,0.00037013,31]
[400233255,1767208249922,-151.0,0.00037013,31]
[400233256,1767208249931,-151.0,0.00037013,31]
[400233257,1767208249940,-151.0,0.00037013,31]
[400233258,1767208249950,-856.210546,0.00037013,31]
[400233259,1767208249959,-151.0,0.00037013,31]
[400233260,1767208249968,-856.210546,0.00037013,31]
[400233261,1767208249978,-151.0,0.00037013,31]
[400233262,1767208249987,-151.0,0.00037013,31]
[400233263,1767208249996,-856.210546,0.00037013,31]
[400233264,1767208250007,-856.210546,0.00037013,31]
[400233265,1767208250016,-726.0,0.00037017,11]
[400233266,1767208250027,-5000.0,0.00037027,2]
[400233267,1767208250037,-600.0,0.00037028,2]
[400233268,1767208250046,-800.0,0.00037038,7]
[400233269,1767208250056,-5000.0,0.00037038,11]
[400233270,1767208250065,-169.32246815,0.00037041,30]
[400233271,1767208250075,-3147.76375777,0.00037043,2]
[400233272,1767208250085,-3147.76375777,0.00037078,2]
[400233273,1767208250096,-5000.0,0.00037089,15]
[400233274,1767208250105,-999.97201557,0.00037104,120]
[400233275,1767208250115,-2000.0,0.00037108,7]
[400233276,1767208250125,-179.95097547,0.0003711,120]
[400233277,1767208250134,-3147.76375777,0.00037113,2]
[400233278,1767208250144,-5000.0,0.00037129,15]
[400233279,1767208250153,-5000.0,0.00037153,9]
[400233280,1767208250163,-800.0,0.00037156,7]
[400233281,1767208250172,-193.3811029,0.00037178,30]
[400233282,1767208250182,-193.3811029,0.00037178,30]
[400233283,1767208250191,-193.3811029,0.00037178,30]
[400233284,1767208250201,-193.3811029,0.00037178,30]
[400233285,1767208250211,-193.3811029,0.00037178,30]
[400233286,1767208250221,-193.3811029,0.00037178,30]
[400233287,1767208250230,-599.7286954,0.00037178,30]
[400233288,1767208250239,-599.7286954,0.00037178,30]
[400233289,1767208250249,-599.7286954,0.00037178,30]
[400233290,1767208250258,-599.7286954,0.00037178,30]
[400233291,1767208250268,-599.7286954,0.00037178,30]
[400233292,1767208250280,-599.7286954,0.00037178,30]
[400233293,1767208250289,-599.7286954,0.00037178,30]
[400233294,1767208250299,-599.7286954,0.00037178,30]
[400233295,1767208250317,-151.0,0.0003719,31]
[400233296,1767208250327,-151.0,0.0003719,31]
[400233297,1767208250336,-151.0,0.0003719,31]
[400233298,1767208250347,-151.0,0.0003719,31]
[400233299,1767208250436,-151.0,0.0003719,31]
[400233300,1767208250447,-151.0,0.0003719,31]
[400233301,1767208250456,-151.0,0.0003719,31]
[400233302,1767208250465,-151.0,0.0003719,31]
[400233303,1767208250475,-151.0,0.0003719,31]
[400233304,1767208250485,-151.0,0.0003719,31]
[400233305,1767208250494,-151.0,0.0003719,31]
[400233306,1767208250504,-151.0,0.0003719,31]
[400233307,1767208250513,-151.0,0.0003719,31]
[400233308,1767208250522,-151.0,0.0003719,31]
[400233309,1767208250532,-151.0,0.0003719,31]
[400233310,1767208250541,-183.307303,0.0003719,31]
[400233311,1767208250551,-151.0,0.0003719,31]
[400233312,1767208250560,-151.0,0.0003719,31]
[400233313,1767208250569,-156.330499,0.0003719,31]
[400233314,1767208250578,-151.0,0.0003719,31]
[400233315,1767208250587,-151.0,0.0003719,31]
[400233316,1767208250596,-151.0,0.0003719,31]
[400233317,1767208250606,-151.0,0.0003719,31]
[400233318,1767208250616,-151.0,0.0003719,31]
[400233319,1767208250625,-151.0,0.0003719,31]
[400233320,1767208250659,-259.777782,0.0003719,31]
[400233321,1767208250668,-151.0,0.0003719,31]
[400233322,1767208250678,-151.0,0.0003719,31]
[400233323,1767208250688,-198.1655,0.0003719,31]
[400233324,1767208250698,-151.0,0.0003719,31]
[400233325,1767208250707,-151.0,0.0003719,31]
[400233326,1767208250717,-151.0,0.0003719,31]
[400233327,1767208250727,-151.0,0.0003719,31]
[400233328,1767208250736,-151.0,0.0003719,31]
[400233329,1767208250745,-151.0,0.0003719,31]
[400233330,1767208250755,-151.0,0.0003719,31]
[400233331,1767208250764,-151.0,0.0003719,31]
[400233332,1767208250774,-151.0,0.0003719,31]
[400233333,1767208250783,-229.9205036,0.0003719,31]
[400233334,1767208250792,-151.0,0.0003719,31]
[400233335,1767208250802,-151.0,0.0003719,31]
[400233336,1767208250812,-151.0,0.0003719,31]
[400233337,1767208250822,-151.0,0.0003719,31]
[400233338,1767208250831,-151.0,0.0003719,31]
[400233339,1767208250841,-151.0,0.0003719,31]
[400233340,1767208250850,-151.0,0.0003719,31]
[400233341,1767208250859,-151.0,0.0003719,31]
[400233342,1767208250869,-151.0,0.0003719,31]
[400233343,1767208250878,-289.342021,0.0003719,31]
[400233344,1767208250887,-151.0,0.0003719,31]
[400233345,1767208250896,-151.0,0.0003719,31]
[400233346,1767208250905,-151.0,0.0003719,31]
[400233347,1767208250916,-257.669759,0.0003719,31]
[400233348,1767208250925,-151.0,0.00037196,31]
[400233349,1767208250934,-151.0,0.00037196,31]
[400233350,1767208250943,-151.0,0.00037196,31]
[400233351,1767208250952,-299.126563,0.00037196,31]
[400233352,1767208250962,-194.97163,0.00037196,31]
[400233353,1767208250971,-151.0,0.00037196,31]
[400233354,1767208250980,-151.0,0.00037196,31]
[400233355,1767208250990,-151.0,0.00037196,31]
[400233356,1767208250999,-151.0,0.00037196,31]
[400233357,1767208251009,-151.0,0.00037196,31]
[400233358,1767208251018,-151.0,0.00037196,31]
[400233359,1767208251027,-151.0,0.00037196,31]
[400233360,1767208251037,-151.0,0.00037196,31]
[400233361,1767208251046,-151.0,0.00037196,31]
[400233362,1767208251055,-151.0,0.00037196,31]
[400233363,1767208251064,-151.0,0.00037196,31]
[400233364,1767208251074,-151.0,0.00037196,31]
[400233365,1767208251083,-151.0,0.00037196,31]
[400233366,1767208251092,-151.0,0.00037196,31]
[400233367,1767208251101,-151.0,0.00037196,31]
[400233368,1767208251110,-151.0,0.00037196,31]
[400233369,1767208251120,-151.0,0.00037196,31]
[400233370,1767208251129,-151.0,0.00037196,31]
[400233371,1767208251139,-194.916569,0.00037196,31]
[400233372,1767208251148,-151.0,0.00037196,31]
[400233373,1767208251157,-151.0,0.00037196,31]
[400233374,1767208251167,-151.0,0.00037196,31]
[400233375,1767208251177,-206.620926,0.00037196,31]
[400233376,1767208251186,-262.443875,0.00037196,31]
[400233377,1767208251195,-262.443875,0.00037196,31]
[400233378,1767208251205,-262.443875,0.00037196,31]
[400233379,1767208251214,-151.0,0.00037196,31]
[400233380,1767208251224,-262.443867,0.00037196,31]
[400233381,1767208251233,-151.0,0.00037196,31]
[400233382,1767208251247,-151.0,0.00037196,31]
[400233383,1767208251263,-151.0,0.00037196,31]
[400233384,1767208251280,-151.0,0.00037196,31]
[400233385,1767208251292,-151.0,0.00037196,31]
[400233386,1767208251307,-151.0,0.00037196,31]
[400233387,1767208251322,-151.0,0.00037196,31]
[400233388,1767208251337,-151.0,0.00037196,31]
[400233389,1767208251354,-151.0,0.00037196,31]
[400233390,1767208251369,-151.0,0.00037196,31]
[400233391,1767208251382,-151.0,0.00037196,31]
[400233392,1767208251396,-154.738358,0.00037196,31]
[400233393,1767208251411,-151.0,0.00037196,31]
[400233394,1767208251424,-151.0,0.00037196,31]
[400233395,1767208251435,-151.0,0.00037196,31]
[400233396,1767208251448,-151.0,0.00037196,31]
[400233397,1767208251461,-198.827398,0.00037196,31]
[400233398,1767208251476,-151.0,0.00037196,31]
[400233399,1767208251491,-151.0,0.00037196,31]
[400233400,1767208251505,-151.0,0.00037196,31]
[400233401,1767208251521,-151.0,0.00037196,31]
[400233402,1767208251532,-151.0,0.00037196,31]
[400233403,1767208251543,-151.0,0.00037196,31]
[400233404,1767208251559,-151.0,0.00037196,31]
[400233405,1767208251572,-151.0,0.00037196,31]
[400233406,1767208251583,-151.0,0.00037196,31]
[400233407,1767208251597,-151.0,0.00037196,31]
[400233408,1767208251609,-151.0,0.00037196,31]
[400233409,1767208251619,-151.0,0.00037196,31]
[400233410,1767208251632,-151.0,0.00037196,31]
[400233411,1767208251644,-151.0,0.00037196,31]
[400233412,1767208251656,-151.0,0.00037196,31]
[400233413,1767208251668,-151.0,0.00037196,31]
[400233414,1767208251680,-151.0,0.00037196,31]
[400233415,1767208251692,-301.76576,0.00037196,31]